bitfinex/quotes_BTCUSD_20241003
["timestamp","ask_amount","ask_price","bid_price","bid_amount"]
[1727943203721,0.28507404,60754.0,60753.0,0.00698925]
[1727943203935,0.28507404,60754.0,60753.0,0.00798925]
[1727943203936,0.29907404,60754.0,60753.0,0.00798925]
[1727943204194,0.28807404,60754.0,60753.0,0.00698925]
[1727943204428,0.1994,60753.0,60735.0,0.00239257]
[1727943204653,0.254685,60751.0,60735.0,0.00239257]
[1727943204876,0.26835652,60751.0,60735.0,0.00239257]
[1727943205773,0.24535652,60751.0,60735.0,0.00239257]
[1727943206263,0.231685,60751.0,60735.0,0.00239257]
[1727943206770,0.251685,60751.0,60736.0,0.131717]
[1727943206990,0.008,60751.0,60737.0,0.263427]
[1727943207222,0.145685,60751.0,60735.0,0.00239257]
[1727943207451,0.244685,60751.0,60735.0,0.00239257]
[1727943207679,0.31317418,60751.0,60735.0,0.00239257]
[1727943207903,0.30017418,60751.0,60735.0,0.00239257]
[1727943208125,0.32898407,60751.0,60737.0,0.131713]
[1727943208389,0.09729907,60751.0,60740.0,0.24487039]
[1727943208618,0.145685,60751.0,60740.0,0.00025]
[1727943209068,0.134685,60751.0,60740.0,0.131958]
[1727943209297,0.141685,60751.0,60740.0,0.00025]
[1727943209554,0.24462039,60753.0,60741.0,0.033959]
[1727943209814,0.131685,60751.0,60741.0,0.001019]
[1727943210049,0.242685,60751.0,60741.0,0.001019]
[1727943210300,0.30348952,60751.0,60741.0,0.001019]
[1727943210536,0.249685,60751.0,60741.0,0.001019]
[1727943210756,0.238685,60751.0,60742.0,0.131704]
[1727943211202,0.238685,60751.0,60741.0,0.001019]
[1727943211203,0.66964649,60751.0,60741.0,0.001019]
[1727943211448,0.4250261,60751.0,60741.0,0.001019]
[1727943211925,0.37429719,60751.0,60741.0,0.001019]
[1727943212148,0.87287051,60751.0,60741.0,0.001019]
[1727943212374,0.87487051,60751.0,60741.0,0.001019]
[1727943212599,0.85687051,60751.0,60741.0,0.001019]
[1727943212839,0.85487051,60751.0,60741.0,0.001019]
[1727943213290,0.86187051,60751.0,60750.0,0.00033669]
[1727943213525,0.87385766,60751.0,60750.0,0.00033669]
[1727943213745,0.87585766,60751.0,60750.0,0.00033669]
[1727943213977,0.87385766,60751.0,60750.0,0.00033669]
[1727943216578,0.89577712,60751.0,60750.0,0.00033669]
[1727943217057,0.89577712,60751.0,60741.0,0.001019]
[1727943217058,0.131713,60738.0,60737.0,0.2220497]
[1727943217281,0.131717,60736.0,60735.0,0.00239257]
[1727943217573,0.05380452,60750.0,60735.0,0.00239257]
[1727943217574,0.131705,60742.0,60737.0,0.131714]
[1727943217787,0.2634,60744.0,60738.0,0.131713]
[1727943218010,0.131706,60741.0,60737.0,0.131715]
[1727943218250,0.001,60738.0,60737.0,0.002]
[1727943218498,0.001,60738.0,60737.0,0.133715]
[1727943219192,0.001,60738.0,60737.0,0.226515]
[1727943219409,0.24462039,60746.0,60745.0,0.131698]
[1727943219953,0.24462039,60754.0,60752.0,0.131682]
[1727943220197,0.50989039,60775.0,60752.0,0.60937795]
[1727943220198,0.0490697,60758.0,60752.0,0.60937795]
[1727943220417,0.24625839,60753.0,60752.0,0.70217795]
[1727943220648,0.001638,60753.0,60752.0,0.70417795]
[1727943221440,0.002638,60753.0,60752.0,0.70517795]
[1727943221941,0.001638,60753.0,60752.0,0.70217795]
[1727943222508,0.002638,60753.0,60752.0,0.171622]
[1727943222728,0.002638,60753.0,60744.0,0.03294]
[1727943222729,0.131698,60745.0,60744.0,0.03294]
[1727943222958,0.001638,60753.0,60736.0,0.47523639]
[1727943222959,0.263392,60746.0,60736.0,0.47523639]
[1727943223228,0.131705,60742.0,60736.0,0.230616]
[1727943223444,0.263404,60743.0,60736.0,0.0989]
[1727943223666,0.131706,60742.0,60736.0,0.0989]
[1727943223888,0.02580975,60741.0,60736.0,0.230616]
[1727943224108,0.131706,60742.0,60736.0,0.230616]
[1727943224293,0.131706,60741.0,60736.0,0.230616]
[1727943224542,0.24462039,60744.0,60736.0,0.0989]
[1727943224755,0.131705,60742.0,60737.0,0.164654]
[1727943224972,0.001,60743.0,60737.0,0.03294]
[1727943225212,0.001,60743.0,60740.0,0.131707]
[1727943225424,0.001,60743.0,60738.0,0.263424]
[1727943225425,0.131705,60742.0,60738.0,0.164653]
[1727943226166,0.001,60743.0,60738.0,0.03294]
[1727943226263,0.131711,60739.0,60738.0,0.03294]
[1727943226489,0.131711,60739.0,60737.0,0.03294]
[1727943226490,0.131713,60738.0,60737.0,0.03294]
[1727943227157,0.15752497,60738.0,60737.0,0.03294]
[1727943227417,0.131717,60736.0,60735.0,0.00239257]
[1727943229237,0.132717,60736.0,60735.0,0.04133257]
[1727943230126,0.132717,60736.0,60735.0,0.04333257]
[1727943230574,0.263398,60745.0,60735.0,0.00239257]
[1727943230806,0.132717,60736.0,60735.0,0.04333257]
[1727943231280,0.131717,60736.0,60735.0,0.03533257]
[1727943231730,0.14933215,60736.0,60735.0,0.04833257]
[1727943231956,0.14933215,60736.0,60735.0,0.04333257]
[1727943232189,0.01861515,60736.0,60735.0,0.04833257]
[1727943232992,0.14833215,60736.0,60735.0,0.00239257]
[1727943233236,0.14833215,60736.0,60735.0,0.04533257]
[1727943233237,0.0434275,60736.0,60735.0,0.04533257]
[1727943233451,0.0444275,60736.0,60735.0,0.04533257]
[1727943233669,0.0434275,60736.0,60735.0,0.03933257]
[1727943233958,0.0444275,60736.0,60735.0,0.04533257]
[1727943234172,0.1761445,60736.0,60735.0,0.04533257]
[1727943236637,0.1761445,60736.0,60735.0,0.04033257]
[1727943236838,0.1751445,60736.0,60735.0,0.00939257]
[1727943237057,0.1751445,60736.0,60735.0,0.00919257]
[1727943238623,0.1751445,60736.0,60735.0,0.01419257]
[1727943238839,0.1761445,60736.0,60735.0,0.01419257]
[1727943239053,0.1761445,60736.0,60735.0,0.00919257]
[1727943239054,0.1751445,60736.0,60735.0,0.00919257]
[1727943239308,0.15952935,60736.0,60735.0,0.01419257]
[1727943239527,0.17619138,60736.0,60735.0,0.01419257]
[1727943239745,0.17619211,60736.0,60735.0,0.01419257]
[1727943240224,0.53207665,60736.0,60735.0,0.01419257]
[1727943240493,0.25037976,60736.0,60735.0,0.01419257]
[1727943240719,0.53207665,60736.0,60735.0,0.01419257]
[1727943240939,0.53107665,60736.0,60735.0,0.00719257]
[1727943241395,0.53407665,60736.0,60735.0,0.00719257]
[1727943241665,0.64701872,60736.0,60735.0,0.00219257]
[1727943241901,0.67601872,60736.0,60735.0,5.7e-07]
[1727943242119,0.67801872,60736.0,60735.0,5.7e-07]
[1727943242583,0.69201872,60736.0,60735.0,5.7e-07]
[1727943242803,0.66901872,60736.0,60735.0,5.7e-07]
[1727943243288,0.69201872,60736.0,60735.0,0.00100057]
[1727943243516,0.131737,60727.0,60726.0,0.000928]
[1727943243740,0.53009665,60727.0,60726.0,0.000928]
[1727943243965,0.67673281,60727.0,60726.0,0.000928]
[1727943244188,0.67873281,60727.0,60726.0,0.000928]
[1727943244454,0.70173281,60727.0,60726.0,0.000928]
[1727943244656,0.69993422,60727.0,60726.0,0.000928]
[1727943244907,0.73275442,60727.0,60726.0,0.001928]
[1727943245144,0.233745,60723.0,60721.0,0.0002]
[1727943245417,0.25060917,60723.0,60721.0,0.0002]
[1727943245643,0.27360917,60723.0,60721.0,0.0002]
[1727943245864,0.24860917,60723.0,60721.0,0.0002]
[1727943246083,0.53030606,60723.0,60721.0,0.0002]
[1727943246312,0.24860917,60723.0,60721.0,0.0002]
[1727943246543,0.49322956,60723.0,60721.0,0.0002]
[1727943246811,0.64568901,60723.0,60721.0,0.0002]
[1727943247051,0.40106862,60723.0,60721.0,0.0002]
[1727943247264,0.40306862,60723.0,60721.0,0.0002]
[1727943247482,0.42606862,60723.0,60721.0,0.0002]
[1727943247703,0.26460917,60723.0,60721.0,0.0002]
[1727943247921,0.26260917,60723.0,60721.0,0.0002]
[1727943248160,0.29943381,60723.0,60721.0,0.0002]
[1727943248409,0.159747,60722.0,60721.0,0.0002]
[1727943248625,0.41346389,60713.0,60706.0,0.24462039]
[1727943248845,0.51346389,60713.0,60706.0,0.24462039]
[1727943249110,0.51346389,60713.0,60699.0,0.03294]
[1727943249370,0.53033301,60713.0,60699.0,0.03294]
[1727943250256,0.53033301,60713.0,60698.0,0.0923]
[1727943250503,0.53633301,60713.0,60698.0,0.0923]
[1727943251162,0.53033301,60713.0,60698.0,0.0923]
[1727943251609,0.54033301,60713.0,60698.0,0.0923]
[1727943251837,0.61193301,60713.0,60698.0,0.0923]
[1727943252077,0.62593301,60713.0,60698.0,0.0923]
[1727943252616,0.6637617,60713.0,60698.0,0.0923]
[1727943252864,0.38206481,60713.0,60698.0,0.0923]
[1727943253182,0.37006481,60713.0,60698.0,0.0923]
[1727943253360,0.30146481,60713.0,60698.0,0.0923]
[1727943253847,0.28846481,60713.0,60698.0,0.0923]
[1727943254078,0.5561617,60713.0,60698.0,0.0923]
[1727943254320,0.7059507,60713.0,60698.0,0.0923]
[1727943254595,0.7219507,60713.0,60698.0,0.0923]
[1727943254825,0.70308158,60713.0,60698.0,0.0923]
[1727943255041,0.72182515,60713.0,60698.0,0.0923]
[1727943255259,0.70582515,60713.0,60698.0,0.0923]
[1727943255499,0.81962515,60713.0,60712.0,9.8e-07]
[1727943255774,0.231791,60702.0,60694.0,0.24462039]
[1727943255998,0.53223146,60702.0,60694.0,0.24462039]
[1727943256263,0.53023146,60702.0,60692.0,0.000818]
[1727943256487,0.55606346,60702.0,60692.0,0.000818]
[1727943256702,0.27436657,60702.0,60692.0,0.000818]
[1727943256922,0.231793,60701.0,60692.0,0.000818]
[1727943257150,0.24853657,60701.0,60692.0,0.000818]
[1727943257383,0.01674357,60701.0,60692.0,0.31545489]
[1727943257642,0.14853657,60701.0,60692.0,0.000818]
[1727943258567,0.15253657,60701.0,60692.0,0.000818]
[1727943258792,0.14853657,60701.0,60692.0,0.000818]
[1727943259015,0.24853657,60701.0,60692.0,0.000818]
[1727943259240,0.43623657,60701.0,60692.0,0.000818]
[1727943259456,0.26253657,60701.0,60692.0,0.000818]
[1727943260155,0.39433635,60701.0,60692.0,0.000818]
[1727943260385,0.26253657,60701.0,60692.0,0.000818]
[1727943260620,0.30236943,60701.0,60692.0,0.000818]
[1727943261515,0.30259547,60701.0,60692.0,0.000818]
[1727943261987,0.27676261,60701.0,60692.0,0.000818]
[1727943262704,0.26276261,60701.0,60692.0,0.000818]
[1727943263141,0.27476261,60701.0,60692.0,0.000818]
[1727943263805,0.26076261,60701.0,60692.0,0.000818]
[1727943264280,0.27476261,60701.0,60692.0,0.000818]
[1727943264501,0.17476261,60701.0,60692.0,0.000818]
[1727943264726,0.18876261,60701.0,60692.0,0.000818]
[1727943265170,0.18659202,60701.0,60692.0,0.000818]
[1727943265398,0.18859202,60701.0,60692.0,0.000818]
[1727943265610,0.19859202,60701.0,60692.0,0.000818]
[1727943265825,0.29859202,60701.0,60692.0,0.000818]
[1727943266282,0.28859202,60701.0,60692.0,0.000818]
[1727943266502,0.29259202,60701.0,60692.0,0.000818]
[1727943267167,0.27459202,60701.0,60692.0,0.000818]
[1727943267429,0.28459202,60701.0,60692.0,0.000818]
[1727943267645,0.13181,60693.0,60692.0,0.000818]
[1727943267886,0.24877961,60693.0,60692.0,0.000818]
[1727943269010,0.25577961,60693.0,60692.0,0.000818]
[1727943269256,0.25583093,60693.0,60692.0,0.000818]
[1727943269505,0.26183093,60693.0,60692.0,0.000818]
[1727943269745,0.40076715,60693.0,60692.0,0.000818]
[1727943269990,0.26183093,60693.0,60692.0,0.000818]
[1727943270880,0.25483093,60693.0,60692.0,0.000818]
[1727943271101,0.26183093,60693.0,60692.0,0.000818]
[1727943271336,0.28766513,60693.0,60692.0,0.000818]
[1727943271565,0.28066513,60693.0,60692.0,0.000818]
[1727943271806,0.28766513,60693.0,60692.0,0.000818]
[1727943273001,0.36915304,60693.0,60692.0,0.000818]
[1727943274157,0.36215304,60693.0,60692.0,0.000818]
[1727943274414,0.37115304,60693.0,60692.0,0.000818]
[1727943274667,0.43905304,60693.0,60692.0,0.000818]
[1727943274915,0.45605304,60693.0,60692.0,0.000818]
[1727943275365,0.44794981,60693.0,60692.0,0.000818]
[1727943275594,0.45594981,60693.0,60692.0,0.000818]
[1727943276448,0.3744619,60693.0,60692.0,0.000818]
[1727943278764,0.37444509,60693.0,60692.0,0.000818]
[1727943279215,0.3575442,60693.0,60692.0,0.000818]
[1727943279436,0.34859867,60693.0,60692.0,0.000818]
[1727943280376,0.26569867,60693.0,60692.0,0.000818]
[1727943281717,0.36945198,60693.0,60692.0,0.000818]
[1727943282386,0.26569867,60693.0,60692.0,0.000818]
[1727943283079,0.24881,60693.0,60692.0,0.000818]
[1727943283999,0.26548653,60693.0,60692.0,0.000818]
[1727943285986,0.29132098,60693.0,60692.0,0.000818]
[1727943286212,0.30848429,60693.0,60692.0,0.000818]
[1727943286669,0.41651616,60693.0,60692.0,0.000818]
[1727943287345,0.39068171,60693.0,60692.0,0.000818]
[1727943288431,0.37400518,60693.0,60692.0,0.000818]
[1727943288665,0.39071906,60693.0,60692.0,0.000818]
[1727943288893,0.39071929,60693.0,60692.0,0.000818]
[1727943290453,0.41655397,60693.0,60692.0,0.000818]
[1727943290676,1.11503299,60693.0,60692.0,0.000818]
[1727943290932,1.13939425,60693.0,60692.0,0.000818]
[1727943291159,0.131817,60690.0,60689.0,0.000818]
[1727943291386,0.50905434,60690.0,60689.0,0.000818]
[1727943291657,0.41997343,60690.0,60689.0,0.000818]
[1727943291869,0.43694611,60690.0,60689.0,0.000818]
[1727943292091,0.53543982,60690.0,60689.0,0.000818]
[1727943292310,0.69862653,60690.0,60689.0,0.000818]
[1727943292522,0.54743982,60690.0,60689.0,0.000818]
[1727943294116,0.56143982,60690.0,60689.0,0.000818]
[1727943294339,0.54743982,60690.0,60689.0,0.000818]
[1727943294556,0.45094611,60690.0,60689.0,0.000818]
[1727943294792,0.46494611,60690.0,60689.0,0.000818]
[1727943295023,0.62801814,60690.0,60689.0,0.000818]
[1727943295739,0.74865131,60690.0,60689.0,0.000818]
[1727943296615,0.62801814,60690.0,60689.0,0.000818]
[1727943296831,0.65385764,60690.0,60689.0,0.000818]
[1727943297287,0.59716014,60690.0,60689.0,0.000818]
[1727943297497,0.41997343,60690.0,60689.0,0.000818]
[1727943297730,0.43688975,60690.0,60689.0,0.000818]
[1727943297998,0.46488975,60690.0,60689.0,0.000818]
[1727943298240,0.43688975,60690.0,60689.0,0.000818]
[1727943298484,0.61419331,60690.0,60689.0,0.000818]
[1727943298712,0.38352049,60690.0,60689.0,0.000818]
[1727943298937,0.26285017,60690.0,60689.0,0.000818]
[1727943299159,0.22512283,60690.0,60689.0,0.000818]
[1727943299613,0.17685017,60690.0,60689.0,0.000818]
[1727943300054,0.22513403,60690.0,60689.0,0.000818]
[1727943300284,0.32513403,60690.0,60689.0,0.000818]
[1727943300549,0.32296986,60690.0,60689.0,0.000818]
[1727943300776,0.35096986,60690.0,60689.0,0.000818]
[1727943301007,0.145817,60690.0,60689.0,0.000818]
[1727943301231,0.16169804,60690.0,60689.0,0.000818]
[1727943301454,0.17369804,60690.0,60689.0,0.000818]
[1727943301682,0.16069804,60690.0,60689.0,0.000818]
[1727943302139,0.16969804,60690.0,60689.0,0.000818]
[1727943302410,0.04828386,60694.0,60689.0,0.000818]
[1727943302411,0.131808,60694.0,60689.0,0.171318]
[1727943302654,0.265224,60701.0,60693.0,0.18815643]
[1727943302902,0.265224,60701.0,60694.0,0.094]
[1727943302903,0.24462039,60697.0,60694.0,0.094]
[1727943303180,0.13343,60701.0,60695.0,0.131805]
[1727943303404,0.13343,60701.0,60694.0,0.094]
[1727943303405,0.001636,60701.0,60694.0,0.094]
[1727943303629,0.001636,60701.0,60694.0,0.225808]
[1727943303630,0.131797,60699.0,60694.0,0.225808]
[1727943303869,0.131797,60699.0,60694.0,0.094]
[1727943304151,0.001636,60701.0,60694.0,0.094]
[1727943304424,0.001636,60701.0,60699.0,0.1683]
[1727943304625,0.001636,60701.0,60700.0,0.131795]
[1727943305085,0.02582898,60710.0,60701.0,0.0924]
[1727943305311,0.24462039,60707.0,60705.0,0.131783]
[1727943305535,0.13177,60712.0,60707.0,0.13178]
[1727943306028,0.24462039,60714.0,60708.0,0.0971]
[1727943306297,0.55640825,60721.0,60710.0,0.0775]
[1727943306298,0.263525,60716.0,60710.0,0.0775]
[1727943306543,0.24462039,60714.0,60710.0,0.0775]
[1727943307315,0.131771,60711.0,60710.0,0.0775]
[1727943307317,0.267531,60714.0,60710.0,0.0775]
[1727943307849,0.131771,60711.0,60710.0,0.0775]
[1727943308615,0.266531,60714.0,60710.0,0.0775]
[1727943308616,0.003,60714.0,60710.0,0.0775]
[1727943308874,0.007,60714.0,60710.0,0.0775]
[1727943309118,0.131768,60713.0,60710.0,0.0775]
[1727943309586,0.004,60714.0,60710.0,0.0775]
[1727943309587,0.006,60714.0,60710.0,0.0775]
[1727943309808,0.13177,60712.0,60710.0,0.0775]
[1727943310032,0.263517,60718.0,60710.0,0.0775]
[1727943310266,0.13176,60717.0,60710.0,0.26565643]
[1727943310484,0.3128687,60720.0,60711.0,0.0957]
[1727943310729,0.131761,60716.0,60711.0,0.0957]
[1727943311010,0.001,60714.0,60713.0,0.131767]
[1727943311235,0.003,60718.0,60714.0,0.0916]
[1727943311468,0.003,60718.0,60717.0,0.131757]
[1727943312168,0.02881972,60718.0,60717.0,0.129757]
[1727943312384,0.265077,60736.0,60719.0,0.131753]
[1727943312643,0.263472,60728.0,60718.0,0.263512]
[1727943312869,0.263459,60731.0,60723.0,0.131745]
[1727943313087,0.131742,60725.0,60717.0,0.2027]
[1727943313305,0.263466,60729.0,60718.0,0.263511]
[1727943313550,0.131745,60723.0,60719.0,0.131753]
[1727943313763,0.24462039,60726.0,60719.0,0.132753]
[1727943313995,0.02581716,60727.0,60719.0,0.001]
[1727943314220,0.131747,60723.0,60718.0,0.131755]
[1727943314441,0.263478,60726.0,60718.0,0.001]
[1727943314655,0.263478,60726.0,60718.0,0.002]
[1727943314656,0.131754,60719.0,60718.0,0.002]
[1727943315212,0.263498,60722.0,60718.0,0.002]
[1727943315501,0.131735,60728.0,60723.0,0.131744]
[1727943315769,0.24462039,60726.0,60723.0,0.131745]
[1727943316012,0.24462039,60726.0,60721.0,0.03294]
[1727943316013,0.131744,60724.0,60721.0,0.03294]
[1727943316252,0.263479,60726.0,60721.0,0.03294]
[1727943316534,0.263468,60729.0,60721.0,0.164688]
[1727943316535,0.24462039,60728.0,60721.0,0.164688]
[1727943316770,0.13174,60726.0,60721.0,0.164688]
[1727943317282,0.131741,60725.0,60720.0,0.03294]
[1727943317562,0.131747,60723.0,60718.0,0.154755]
[1727943317846,0.006,60727.0,60717.0,0.1797]
[1727943317847,0.263502,60721.0,60717.0,0.1797]
[1727943318078,0.131771,60711.0,60710.0,0.076]
[1727943318348,0.131776,60709.0,60708.0,0.0951]
[1727943319153,0.02582247,60711.0,60702.0,0.03294]
[1727943319155,0.131788,60704.0,60699.0,0.0951]
[1727943319411,0.131779,60708.0,60701.0,0.18815643]
[1727943319671,0.02582247,60711.0,60702.0,0.164731]
[1727943319672,0.131781,60707.0,60702.0,0.164731]
[1727943319934,0.131783,60706.0,60702.0,0.03294]
[1727943320199,0.02582418,60707.0,60705.0,0.18815643]
[1727943320915,0.002,60734.0,60705.0,0.18815643]
[1727943321183,0.131772,60711.0,60706.0,0.13178]
[1727943321945,0.131772,60711.0,60702.0,0.265579]
[1727943321946,0.131786,60705.0,60702.0,0.002]
[1727943322195,0.56456582,60703.0,60702.0,0.002]
[1727943322453,0.41994543,60703.0,60702.0,0.002]
[1727943322763,0.13181,60693.0,60683.0,0.24462039]
[1727943323478,0.13181,60693.0,60681.0,0.0003336]
[1727943323928,0.17264479,60693.0,60692.0,0.002818]
[1727943324676,0.13981,60693.0,60692.0,0.001818]
[1727943324902,0.13181,60693.0,60692.0,0.000818]
[1727943325129,0.13981,60693.0,60692.0,0.001818]
[1727943326061,0.23797424,60693.0,60692.0,0.002818]
[1727943326307,0.5210723,60693.0,60692.0,0.001818]
[1727943326558,0.5220723,60693.0,60692.0,0.001818]
[1727943326781,0.5237083,60693.0,60692.0,0.001818]
[1727943327005,0.248446,60693.0,60692.0,0.002818]
[1727943327450,0.233446,60693.0,60692.0,0.000818]
[1727943327673,0.241446,60693.0,60692.0,0.001818]
[1727943327902,0.25928252,60693.0,60692.0,0.000818]
[1727943328368,0.27428252,60693.0,60692.0,0.002818]
[1727943329554,0.39912024,60693.0,60692.0,0.001818]
[1727943329787,0.28294753,60693.0,60692.0,0.001818]
[1727943330013,0.28294753,60693.0,60692.0,0.002818]
[1727943330014,0.29094753,60693.0,60692.0,0.002818]
[1727943330473,0.57320983,60693.0,60692.0,0.002818]
[1727943330913,0.65460983,60693.0,60692.0,0.002818]
[1727943331126,0.69021595,60693.0,60692.0,0.002818]
[1727943331568,0.69221595,60693.0,60692.0,0.002818]
[1727943331790,0.69021595,60693.0,60692.0,0.002818]
[1727943332025,0.69018761,60693.0,60692.0,0.002818]
[1727943332244,0.70395094,60693.0,60692.0,0.002818]
[1727943332465,0.67111442,60693.0,60692.0,0.001818]
[1727943332691,0.66311442,60693.0,60692.0,0.000818]
[1727943332915,0.66311442,60693.0,60692.0,0.001818]
[1727943332916,0.68311442,60693.0,60692.0,0.001818]
[1727943333397,0.133817,60690.0,60681.0,0.0003336]
[1727943333618,0.262217,60690.0,60681.0,0.0003336]
[1727943333835,0.264217,60690.0,60681.0,0.0003336]
[1727943334760,0.40678454,60690.0,60681.0,0.0003336]
[1727943335000,0.37438454,60690.0,60681.0,0.0003336]
[1727943335228,0.39119075,60690.0,60681.0,0.0003336]
[1727943335465,0.43083332,60690.0,60681.0,0.0003336]
[1727943335912,0.43063684,60690.0,60681.0,0.0003336]
[1727943336133,0.45463684,60690.0,60681.0,0.0003336]
[1727943336359,0.45463684,60690.0,60689.0,1e-06]
[1727943336821,0.44063684,60690.0,60689.0,1e-06]
[1727943337259,0.44663684,60690.0,60689.0,1e-06]
[1727943337281,0.3180693,60690.0,60689.0,1e-06]
[1727943337508,0.29222981,60690.0,60689.0,1e-06]
[1727943338195,0.27542602,60690.0,60689.0,1e-06]
[1727943338429,0.2901944,60690.0,60689.0,1e-06]
[1727943339119,0.2821944,60690.0,60689.0,1e-06]
[1727943339345,0.2761944,60690.0,60689.0,1e-06]
[1727943339581,0.2901944,60690.0,60689.0,1e-06]
[1727943339820,0.3041944,60690.0,60689.0,1e-06]
[1727943340051,0.2761944,60690.0,60689.0,1e-06]
[1727943340277,0.2901944,60690.0,60689.0,1e-06]
[1727943340509,0.3041944,60690.0,60689.0,1e-06]
[1727943340732,0.30203286,60690.0,60689.0,1e-06]
[1727943340967,0.31603286,60690.0,60689.0,1e-06]
[1727943341224,0.33003286,60690.0,60689.0,1e-06]
[1727943341448,0.31325518,60690.0,60689.0,1e-06]
[1727943341667,0.3299297,60690.0,60689.0,1e-06]
[1727943341893,0.30409124,60690.0,60689.0,1e-06]
[1727943342124,0.29029702,60690.0,60689.0,1e-06]
[1727943342355,0.26226143,60690.0,60689.0,1e-06]
[1727943342583,0.27626143,60690.0,60689.0,1e-06]
[1727943343044,0.17626143,60690.0,60689.0,1e-06]
[1727943343760,0.19026143,60690.0,60689.0,1e-06]
[1727943343988,0.17626143,60690.0,60689.0,1e-06]
[1727943344226,0.18726143,60690.0,60689.0,1e-06]
[1727943344452,0.27326143,60690.0,60689.0,1e-06]
[1727943344676,0.27334913,60690.0,60689.0,1e-06]
[1727943344965,0.28541556,60690.0,60689.0,1e-06]
[1727943345213,0.29924307,60690.0,60689.0,1e-06]
[1727943345677,0.30205849,60690.0,60689.0,1e-06]
[1727943345914,0.31105849,60690.0,60689.0,1e-06]
[1727943346397,0.55667888,60690.0,60689.0,1e-06]
[1727943346619,0.31605849,60690.0,60689.0,1e-06]
[1727943346839,0.33005849,60690.0,60689.0,1e-06]
[1727943347060,0.31605849,60690.0,60689.0,1e-06]
[1727943347283,0.30205849,60690.0,60689.0,1e-06]
[1727943347501,0.33005849,60690.0,60689.0,1e-06]
[1727943347950,0.31640663,60690.0,60689.0,1e-06]
[1727943348168,0.33028296,60690.0,60689.0,1e-06]
[1727943350925,0.31498254,60690.0,60689.0,1e-06]
[1727943351152,0.31809801,60690.0,60689.0,1e-06]
[1727943351636,0.29226167,60690.0,60689.0,1e-06]
[1727943351852,0.30617394,60690.0,60689.0,1e-06]
[1727943352292,0.29217394,60690.0,60689.0,1e-06]
[1727943352572,0.27535707,60690.0,60689.0,1e-06]
[1727943352791,0.28735707,60690.0,60689.0,1e-06]
[1727943353238,0.27535707,60690.0,60689.0,1e-06]
[1727943353463,0.28435707,60690.0,60689.0,1e-06]
[1727943353913,0.27335707,60690.0,60689.0,1e-06]
[1727943354136,0.27644311,60690.0,60689.0,1e-06]
[1727943354592,0.2796104,60690.0,60689.0,1e-06]
[1727943354828,0.27648459,60690.0,60689.0,1e-06]
[1727943355348,0.29043802,60690.0,60689.0,1e-06]
[1727943355600,0.28843802,60690.0,60689.0,1e-06]
[1727943356067,0.27843802,60690.0,60689.0,1e-06]
[1727943356330,0.29843802,60690.0,60689.0,1e-06]
[1727943357022,0.29843802,60690.0,60689.0,0.097301]
[1727943357276,0.06662102,60690.0,60689.0,0.28549165]
[1727943357502,0.02658803,60690.0,60689.0,0.28549165]
[1727943357736,0.05767669,60690.0,60689.0,0.28549165]
[1727943357986,0.05767669,60690.0,60689.0,0.41731065]
[1727943358233,0.05767669,60690.0,60689.0,0.45025065]
[1727943358458,0.04667669,60690.0,60689.0,0.45025065]
[1727943358909,0.04667669,60690.0,60689.0,0.45010168]
[1727943358910,0.04867669,60690.0,60689.0,0.45010168]
[1727943359134,0.07250637,60690.0,60689.0,0.45010168]
[1727943359353,0.07250637,60690.0,60689.0,0.45110168]
[1727943359579,0.04867669,60690.0,60689.0,0.131241]
[1727943359806,0.04867669,60690.0,60689.0,0.31828268]
[1727943359807,0.03370287,60690.0,60689.0,0.31828268]
[1727943360028,0.04669046,60690.0,60689.0,0.31828268]
[1727943360298,0.04669046,60690.0,60689.0,0.32028268]
[1727943360299,0.04769046,60690.0,60689.0,0.32028268]
[1727943360534,0.04869046,60690.0,60689.0,0.32128268]
[1727943360768,0.03480171,60690.0,60689.0,0.45310168]
[1727943360995,0.04878986,60690.0,60689.0,0.45310168]
[1727943361453,0.03480171,60690.0,60689.0,0.45310168]
[1727943361678,0.03380171,60690.0,60689.0,0.45110168]
[1727943362158,0.001636,60693.0,60689.0,0.45110168]
[1727943362159,0.001636,60693.0,60692.0,0.154813]
[1727943362394,0.24462039,60704.0,60701.0,0.31983468]
[1727943362658,0.24462039,60704.0,60701.0,0.37267468]
[1727943362902,0.24462039,60704.0,60701.0,0.24088168]
[1727943363151,0.02746134,60702.0,60701.0,0.24088168]
[1727943363395,0.02746134,60702.0,60701.0,0.37267468]
[1727943363935,0.24462039,60728.0,60708.0,0.18804168]
[1727943364214,0.131761,60716.0,60709.0,0.263551]
[1727943364433,0.131761,60716.0,60710.0,0.131772]
[1727943364434,0.131763,60715.0,60710.0,0.131772]
[1727943364667,0.26351,60719.0,60708.0,0.45159568]
[1727943364668,0.24462039,60713.0,60711.0,0.22417]
[1727943364899,0.131757,60718.0,60714.0,0.131764]
[1727943365137,0.3129519,60721.0,60717.0,0.131757]
[1727943365138,0.0494519,60721.0,60717.0,0.131757]
[1727943365363,0.0494519,60721.0,60719.0,0.131754]
[1727943365592,0.263476,60727.0,60717.0,0.03294]
[1727943365593,0.131738,60727.0,60717.0,0.03294]
[1727943365823,0.24462039,60728.0,60724.0,0.31978368]
[1727943366043,0.24462039,60728.0,60724.0,0.18804168]
[1727943366270,0.3130069,60732.0,60725.0,0.0826]
[1727943366271,0.0495519,60732.0,60725.0,0.0826]
[1727943366497,0.0495519,60732.0,60728.0,0.18804168]
[1727943366762,0.0495519,60732.0,60729.0,0.0982]
[1727943367009,0.265075,60736.0,60729.0,0.0982]
[1727943367236,0.37635039,60730.0,60729.0,0.0982]
[1727943367461,0.001638,60736.0,60725.0,0.0826]
[1727943367462,0.263458,60731.0,60725.0,0.0826]
[1727943367917,0.263468,60729.0,60725.0,0.0826]
[1727943368173,0.131739,60726.0,60725.0,0.0826]
[1727943368868,0.395208,60728.0,60725.0,0.0826]
[1727943369144,0.26346,60731.0,60725.0,0.21434]
[1727943369369,0.131731,60730.0,60725.0,0.21434]
[1727943369590,0.263449,60733.0,60725.0,0.0856]
[1727943369813,0.24462039,60730.0,60725.0,0.002]
[1727943370032,0.131743,60724.0,60723.0,0.03294]